bitfinex/quotes_ETHUSD_20250425
["timestamp","ask_amount","ask_price","bid_price","bid_amount"]
[1745591089495,5.61720036,1780.3,1780.1,5.93]
[1745591089652,5.61734636,1780.2,1780.1,5.93]
[1745591090288,5.61695872,1780.4,1780.1,5.93]
[1745591090789,5.61639988,1780.5,1780.1,5.93]
[1745591090952,8.61587683,1780.7,1780.1,5.93]
[1745591091147,5.91621863,1780.6,1780.1,5.93]
[1745591091348,0.3,1780.6,1780.1,5.93]
[1745591091652,5.61681783,1780.4,1780.1,5.93]
[1745591092394,5.61734636,1780.2,1780.1,5.93]
[1745591092755,5.61720373,1780.3,1780.1,5.93]
[1745591092953,5.61687062,1780.4,1780.1,5.93]
[1745591093266,5.61734636,1780.2,1780.1,5.93]
[1745591093602,11.23389748,1780.4,1780.1,5.93]
[1745591093790,5.61707729,1780.3,1780.1,5.93]
[1745591094292,6.61854636,1780.2,1780.1,5.93]
[1745591094600,9.61854636,1780.2,1780.1,5.93]
[1745591095556,9.61854636,1780.2,1779.8,6.363]
[1745591095557,5.61829316,1779.9,1779.8,6.363]
[1745591095860,11.75787964,1779.9,1779.8,6.363]
[1745591096081,14.75787964,1779.9,1779.8,6.363]
[1745591096289,16.79547894,1779.9,1779.8,6.363]
[1745591096469,10.65589246,1779.9,1779.8,6.363]
[1745591097280,7.65589246,1779.9,1779.8,6.363]
[1745591098390,16.7944337,1779.9,1779.8,6.363]
[1745591100392,5.61892453,1779.7,1779.6,5.93]
[1745591100694,9.83784145,1779.7,1779.4,6.128]
[1745591100895,8.61987186,1779.4,1779.3,5.93]
[1745591101201,9.61887186,1779.4,1779.3,5.93]
[1745591101398,5.62113546,1779.0,1778.9,6.128]
[1745591102496,5.62113546,1779.0,1778.8,6.08]
[1745591103107,5.62126622,1779.0,1778.8,6.08]
[1745591103309,5.62099408,1779.1,1778.8,6.08]
[1745591103479,8.62093657,1779.1,1778.8,6.08]
[1745591103676,5.62131518,1779.0,1778.8,6.08]
[1745591103882,5.62137274,1779.0,1778.8,6.08]
[1745591104223,5.62145145,1778.9,1778.8,6.08]
[1745591104391,5.62239964,1778.6,1778.5,6.08]
[1745591105393,8.62239964,1778.6,1778.5,6.08]
[1745591105815,5.62334814,1778.3,1778.2,6.129]
[1745591105980,8.62239964,1778.6,1778.2,6.129]
[1745591105981,5.62311427,1778.4,1778.2,6.129]
[1745591106177,5.62314609,1778.4,1778.2,6.129]
[1745591106406,5.62334814,1778.3,1778.2,6.129]
[1745591106686,5.62334814,1778.3,1778.1,6.13]
[1745591106900,5.62366437,1778.2,1778.1,6.13]
[1745591107235,3.0,1778.3,1778.1,6.13]
[1745591107585,1.36474594,1778.6,1778.1,6.13]
[1745591107785,1.42423672,1779.0,1778.3,5.62319294]
[1745591107989,0.935,1779.3,1778.5,0.413]
[1745591108330,5.62067189,1779.2,1778.6,6.08]
[1745591108480,5.62067189,1779.2,1778.7,6.131]
[1745591108682,5.62134525,1779.0,1778.7,6.131]
[1745591109119,12.00942082,1779.6,1778.7,6.131]
[1745591109120,5.61999818,1779.4,1778.7,7.3521]
[1745591109344,5.61962916,1779.5,1778.8,6.493]
[1745591109508,5.62010615,1779.4,1778.8,6.493]
[1745591109700,0.41237895,1779.5,1778.8,6.493]
[1745591109902,3.0,1779.4,1778.8,6.493]
[1745591110297,5.62145145,1778.9,1778.8,6.08]
[1745591110640,5.62176748,1778.8,1778.7,6.131]
[1745591110947,3.0,1778.8,1778.4,6.131]
[1745591111108,5.62255313,1778.6,1778.4,6.131]
[1745591111434,0.56225531,1778.5,1778.4,6.131]
[1745591111617,6.18497108,1778.5,1778.4,6.131]
[1745591112132,5.62366437,1778.2,1778.1,0.05]
[1745591112438,8.62353854,1778.3,1778.1,0.05]
[1745591112611,5.62366437,1778.2,1778.1,0.05]
[1745591112809,3.0,1778.3,1778.1,0.05]
[1745591113007,8.62355442,1778.3,1778.1,0.05]
[1745591113400,5.62366437,1778.2,1778.1,0.05]
[1745591113596,8.62366437,1778.2,1778.1,0.05]
[1745591113797,9.60556437,1778.2,1778.1,0.05]
[1745591114008,11.74233037,1778.2,1778.1,0.05]
[1745591114810,5.62322475,1778.4,1778.1,0.05]
[1745591115011,1.54415531,1778.5,1778.1,0.05]
[1745591115219,5.62357797,1778.3,1778.1,0.05]
[1745591115613,4.54415531,1778.5,1778.1,0.05]
[1745591115828,5.6234809,1778.3,1778.1,0.05]
[1745591116051,7.04813898,1778.3,1778.1,0.05]
[1745591116217,8.62366437,1778.2,1778.1,0.05]
[1745591117326,9.55906437,1778.2,1778.1,0.05]
[1745591118140,6.55969696,1778.0,1777.1,0.05]
[1745591118339,5.62597103,1777.5,1777.1,0.05]
[1745591118760,5.62545616,1777.7,1777.1,6.13]
[1745591119450,5.6256198,1777.6,1777.1,6.13]
[1745591119764,5.62502933,1777.8,1777.1,6.13]
[1745591120056,4.5913697,1777.9,1777.1,6.13]
[1745591120306,0.72159928,1777.8,1777.2,6.08]
[1745591120418,6.34669177,1777.8,1777.3,6.547]
[1745591120758,0.72159928,1777.8,1777.3,6.547]
[1745591120944,5.62553018,1777.7,1777.3,6.547]
[1745591121258,5.62536456,1777.7,1777.3,6.547]
[1745591121440,6.82257288,1777.7,1777.3,6.547]
[1745591121649,0.72159928,1777.8,1777.3,6.547]
[1745591122175,1.34735656,1778.2,1777.4,6.08]
[1745591122314,0.42675656,1778.2,1777.5,0.413]
[1745591122521,5.62294959,1778.5,1777.7,0.413]
[1745591122724,5.62294959,1778.5,1777.8,6.134]
[1745591123023,0.41174121,1778.5,1777.8,6.134]
[1745591123270,5.62373249,1778.2,1777.8,6.134]
[1745591123428,5.62353236,1778.3,1777.8,6.134]
[1745591124227,5.62304304,1778.4,1777.8,6.134]
[1745591124435,3.0,1778.4,1777.8,6.134]
[1745591124939,5.62220532,1778.7,1778.0,0.413]
[1745591125135,5.62292078,1778.5,1778.0,0.413]
[1745591125334,6.18466619,1778.6,1778.0,0.413]
[1745591125737,0.56222053,1778.6,1778.1,6.08]
[1745591125941,6.54677024,1778.9,1778.1,6.08]
[1745591126229,5.62219142,1778.7,1778.1,6.08]
[1745591126629,3.0,1778.6,1778.1,6.08]
[1745591126840,8.62254891,1778.6,1778.1,6.08]
[1745591127170,5.62291456,1778.5,1778.1,6.08]
[1745591127324,7.04746043,1778.5,1778.1,6.08]
[1745591127524,12.67043378,1778.5,1778.1,6.08]
[1745591127757,4.42454587,1778.5,1778.1,6.08]
[1745591128005,5.62451873,1778.0,1777.7,6.547]
[1745591128302,8.62417484,1778.1,1777.8,6.08]
[1745591128500,4.16241748,1778.1,1777.8,6.08]
[1745591128701,3.0,1778.1,1777.8,6.08]
[1745591129006,8.62411369,1778.1,1777.8,6.08]
[1745591129372,5.62437795,1778.0,1777.8,6.08]
[1745591129686,8.6246133,1777.9,1777.8,6.08]
[1745591129887,15.5352133,1777.9,1777.8,6.08]
[1745591130088,5.62587904,1777.5,1777.4,6.08]
[1745591130267,8.62587904,1777.5,1777.4,6.08]
[1745591131968,5.6255694,1777.6,1777.1,0.05]
[1745591131969,8.62682871,1777.2,1777.1,0.05]
[1745591133099,5.62872903,1776.6,1776.5,6.08]
[1745591133304,8.62872903,1776.6,1776.5,6.08]
[1745591133878,1.0121,1777.1,1776.5,6.08]
[1745591134078,3.0,1776.6,1776.5,6.08]
[1745591134278,9.49157253,1776.6,1776.5,6.08]
[1745591135303,3.0,1776.6,1776.5,6.08]
[1745591135506,8.62872903,1776.6,1776.5,6.08]
[1745591135910,3.0,1776.6,1776.5,6.08]
[1745591136414,1.27725807,1777.1,1776.5,6.08]
[1745591136415,6.63940903,1777.1,1776.5,6.08]
[1745591136617,0.9191,1777.4,1776.6,6.5407]
[1745591136778,5.62833931,1776.8,1776.6,6.5407]
[1745591136976,5.62833931,1776.8,1776.6,6.08]
[1745591137382,5.62813191,1776.8,1776.6,6.08]
[1745591137628,5.62791141,1776.9,1776.6,6.08]
[1745591137806,3.0,1776.9,1776.6,6.08]
[1745591138008,5.62684038,1777.2,1776.6,7.2919]
[1745591138180,3.0,1777.1,1776.6,7.2919]
[1745591138521,5.62617491,1777.5,1776.7,6.5407]
[1745591138707,5.62575739,1777.6,1776.9,0.4607]
[1745591139026,5.62637632,1777.4,1777.0,12.12]
[1745591139225,5.62639705,1777.4,1777.0,12.12]
[1745591139519,5.62667729,1777.3,1777.0,6.08]
[1745591139718,6.7515969,1777.4,1777.0,6.08]
[1745591139924,5.62678225,1777.3,1777.0,6.08]
[1745591140083,5.62684521,1777.2,1777.0,6.08]
[1745591140281,5.62676628,1777.3,1777.0,6.08]
[1745591140481,5.62696769,1777.2,1777.0,6.08]
[1745591140720,3.0,1777.4,1777.0,6.08]
[1745591140721,5.62682763,1777.3,1777.0,6.08]
[1745591141030,8.62669827,1777.3,1777.0,6.08]
[1745591141203,3.0,1777.4,1777.0,6.08]
[1745591141518,5.62651948,1777.3,1777.0,6.08]
[1745591141719,3.0,1777.4,1777.0,6.08]
[1745591142083,3.0,1777.5,1777.0,6.08]
[1745591142424,5.62625059,1777.4,1777.0,6.688]
[1745591142790,5.62591609,1777.5,1777.0,6.688]
[1745591143014,1.37666432,1777.7,1777.1,6.08]
[1745591143346,5.62493404,1777.8,1777.2,6.5407]
[1745591143521,1.38192983,1777.9,1777.3,6.04]
[1745591143722,5.62423134,1778.1,1777.4,6.5407]
[1745591144044,5.62493947,1777.8,1777.5,6.04]
[1745591144352,6.55981416,1778.1,1777.5,6.04]
[1745591144567,5.62420454,1778.1,1777.5,6.04]
[1745591144713,5.6235686,1778.3,1777.5,5.62585983]
[1745591144918,6.54560309,1778.8,1778.0,0.4607]
[1745591145221,0.9237,1778.8,1778.1,12.12]
[1745591145441,5.6221203,1778.7,1778.1,12.12]
[1745591145813,0.47446702,1778.9,1778.1,12.12]
[1745591146014,5.62230535,1778.7,1778.1,12.12]
[1745591146212,5.62286922,1778.5,1778.2,6.04]
[1745591146438,5.6225969,1778.6,1778.2,6.04]
[1745591146960,12.10685451,1778.7,1778.2,6.04]
[1745591147147,6.48449692,1778.7,1778.2,6.04]
[1745591147347,0.05,1778.9,1778.2,6.04]
[1745591147659,8.62197181,1778.8,1778.2,6.04]
[1745591147953,3.0,1778.8,1778.3,0.4607]
[1745591148452,0.05,1778.9,1778.4,6.08]
[1745591148662,6.23869729,1778.9,1778.4,6.08]
[1745591148813,0.61712954,1778.9,1778.4,6.08]
[1745591149018,0.05,1778.9,1778.4,6.08]
[1745591149216,0.05,1778.9,1778.4,11.70295786]
[1745591149558,0.05,1778.9,1778.5,0.4607]
[1745591150955,5.6716278,1778.9,1778.5,0.4607]
[1745591151585,0.05,1778.9,1778.5,0.4607]
[1745591152083,5.67145683,1778.9,1778.5,0.4607]
[1745591152389,6.2385892,1778.9,1778.5,0.4607]
[1745591152586,5.62239594,1778.7,1778.4,6.08]
[1745591152788,5.62239594,1778.7,1778.3,0.4607]
[1745591153093,9.23865114,1778.9,1778.4,6.036]
[1745591153247,0.92386511,1778.8,1778.4,6.036]
[1745591153451,9.23865114,1778.9,1778.4,6.036]
[1745591153452,0.05,1778.9,1778.4,6.036]
[1745591154089,0.05,1778.9,1778.5,0.4607]
[1745591155058,0.05,1778.9,1778.6,6.08]
[1745591156555,0.05,1778.9,1778.7,6.036]
[1745591157291,5.67162372,1778.9,1778.7,6.036]
[1745591157801,5.62176748,1778.8,1778.6,6.08]
[1745591158262,5.62208354,1778.7,1778.6,6.08]
[1745591159144,5.62198365,1778.8,1778.6,6.08]
[1745591159311,5.62208354,1778.7,1778.6,6.08]
[1745591159737,5.62198365,1778.8,1778.6,6.08]
[1745591159944,1.28409806,1778.8,1778.6,6.08]
[1745591160160,4.17929238,1778.9,1778.6,6.08]
[1745591160161,5.67162987,1778.9,1778.6,6.08]
[1745591160526,0.05,1778.9,1778.6,6.08]
[1745591160922,0.05,1778.9,1778.7,0.4607]
[1745591161133,0.05,1778.9,1778.7,1.11477]
[1745591161732,0.05,1778.9,1778.8,6.08]
[1745591161937,0.05,1778.9,1778.8,6.5435]
[1745591162447,0.05,1778.9,1778.8,12.4675]
[1745591162650,0.05,1778.9,1778.8,18.08926748]
[1745591162848,0.05,1778.9,1778.8,14.90401192]
[1745591163252,0.05,1778.9,1778.8,20.5257794]
[1745591163969,0.05,1778.9,1778.8,14.90401192]
[1745591165571,0.05,1778.9,1778.8,12.003]
[1745591166568,5.67145145,1778.9,1778.8,12.003]
[1745591166872,5.67145145,1778.9,1778.8,6.08]
[1745591167032,0.05,1778.9,1778.8,6.08]
[1745591167227,5.67145145,1778.9,1778.8,6.08]
[1745591168065,6.80072529,1778.9,1778.8,6.08]
[1745591168370,9.80072529,1778.9,1778.8,6.08]
[1745591168572,10.76722529,1778.9,1778.8,6.08]
[1745591168768,8.62271577,1778.5,1778.4,6.08]
[1745591169830,5.62383387,1778.2,1778.1,5.923]
[1745591170543,5.62383387,1778.2,1778.0,6.08]
[1745591170544,5.62398065,1778.1,1778.0,6.08]
[1745591171071,8.62398065,1778.1,1778.0,6.08]
[1745591171269,10.0487621,1778.1,1778.0,6.08]
[1745591172042,5.62398065,1778.1,1778.0,6.08]
[1745591173076,8.62398065,1778.1,1778.0,6.08]
[1745591173878,3.0,1778.1,1778.0,6.08]
[1745591174043,8.62398065,1778.1,1778.0,6.08]
[1745591174233,0.42600222,1778.3,1778.0,6.08]
[1745591174234,6.04950632,1778.3,1778.0,6.08]
[1745591174435,3.0,1778.2,1778.0,6.08]
[1745591174664,8.62368284,1778.2,1778.0,6.08]
[1745591174872,5.62398065,1778.1,1778.0,6.08]
[1745591176259,11.76864117,1778.2,1777.5,12.004]
[1745591176460,3.0,1778.1,1777.5,12.004]
[1745591176662,5.6246474,1777.9,1777.5,12.004]
[1745591177046,5.62462524,1777.9,1777.5,12.004]
[1745591177249,11.24951413,1777.9,1777.5,12.004]
[1745591177692,3.0,1778.1,1777.5,12.004]
[1745591177853,5.62423726,1778.1,1777.5,13.25075]
[1745591178057,3.0,1778.1,1777.5,13.25075]
[1745591178361,11.67016444,1778.3,1777.7,0.4635]
[1745591178560,5.62371243,1778.2,1777.7,0.4635]
[1745591178743,9.04656886,1778.3,1777.7,1.11785]
[1745591178947,5.62377418,1778.2,1777.7,1.11785]
[1745591179149,5.62353333,1778.3,1777.7,1.11785]
[1745591179395,5.62352568,1778.3,1777.7,1.11785]
[1745591179594,3.0,1778.3,1777.7,1.11785]
[1745591179768,6.56211232,1778.4,1777.7,1.11785]
[1745591180178,3.0,1778.4,1777.7,6.74307616]
[1745591180384,8.62325994,1778.4,1777.8,0.67430762]
[1745591180701,8.62311173,1778.4,1777.7,1.11785]
[1745591180882,3.0,1778.4,1777.7,1.11785]
[1745591181053,3.0,1778.4,1777.7,6.74295239]
[1745591181653,6.62119496,1778.6,1777.8,6.08]
[1745591181883,5.62313016,1778.4,1777.8,6.08]
[1745591182096,5.62313016,1778.4,1777.8,6.799785]
[1745591185012,7.00739153,1777.8,1777.3,6.08]
[1745591185311,5.62559064,1777.6,1777.3,6.08]
[1745591185477,5.62566413,1777.6,1777.3,6.08]
[1745591185680,8.62536057,1777.7,1777.3,6.08]
[1745591185989,5.62564749,1777.6,1777.3,6.5435]
[1745591186178,5.62542721,1777.7,1777.3,6.5435]
[1745591186368,3.0,1777.7,1777.3,6.5435]
[1745591186765,8.62543069,1777.7,1777.3,6.5435]
[1745591187018,4.4250493,1777.7,1777.3,6.5435]
[1745591187310,5.62537455,1777.7,1777.3,6.5435]
[1745591187680,5.6260598,1777.5,1777.3,6.08]
[1745591187864,8.62569141,1777.6,1777.3,6.08]
[1745591188064,5.62588154,1777.5,1777.3,6.08]
[1745591188264,8.62569141,1777.6,1777.3,6.08]
[1745591188265,3.0,1777.6,1777.3,6.08]
[1745591188505,5.62540884,1777.7,1777.3,6.08]
[1745591188689,12.03107517,1778.0,1777.3,6.08]
[1745591188690,0.26182755,1778.0,1777.4,6.08]
[1745591188899,5.62464425,1777.9,1777.5,0.4635]
[1745591189066,7.11559856,1778.2,1777.5,0.4635]
[1745591189292,5.62422028,1778.1,1777.6,6.08]
[1745591189618,5.62441727,1778.0,1777.6,6.08]
[1745591189982,5.62422028,1778.1,1777.6,6.08]
[1745591190189,5.62420317,1778.1,1777.6,6.08]
[1745591190410,5.62440206,1778.0,1777.6,6.08]
[1745591190919,5.6244412,1778.0,1777.6,6.08]
[1745591191421,6.04013443,1778.1,1777.6,6.08]
[1745591191624,7.60359105,1778.1,1777.6,6.08]
[1745591191781,5.62449585,1778.0,1777.6,6.08]
[1745591192187,5.62444355,1778.0,1777.6,6.08]
[1745591192822,13.22786173,1778.1,1777.6,6.08]
[1745591193028,5.62430145,1778.0,1777.6,6.08]
[1745591193220,6.94721805,1778.0,1777.6,6.08]
[1745591193423,5.62471303,1777.9,1777.6,6.08]
[1745591193817,5.62476097,1777.9,1777.6,6.08]
[1745591194128,6.94727271,1778.0,1777.6,6.08]
[1745591194696,6.94717878,1778.0,1777.6,6.08]
[1745591194903,5.62470902,1777.9,1777.6,6.08]
[1745591195118,5.6252461,1777.7,1777.6,6.08]
[1745591196685,8.6252461,1777.7,1777.6,6.08]
[1745591196890,9.5431461,1777.7,1777.6,6.08]
[1745591197104,9.5431461,1777.7,1776.8,6.08]
[1745591197105,3.0,1777.6,1776.8,6.08]
[1745591197324,3.0,1777.2,1776.9,6.08]
[1745591197530,3.0,1777.2,1776.9,6.79475569]
[1745591198035,3.0,1777.2,1776.9,6.08]
[1745591198832,8.62683869,1777.2,1776.9,6.08]
[1745591199030,3.0,1777.0,1776.9,6.08]
[1745591199708,8.62746201,1777.0,1776.9,6.08]
[1745591199902,3.0,1777.0,1776.7,5.805]
[1745591200102,6.14489856,1776.9,1776.7,5.805]
[1745591200346,3.9486,1776.8,1776.4,6.08]
[1745591200696,3.0,1776.9,1776.4,6.5407]
[1745591201142,8.62792562,1776.9,1776.4,6.5407]
[1745591201506,5.62816993,1776.8,1776.4,6.5407]
[1745591201706,8.6279041,1776.9,1776.4,6.5407]
[1745591201908,8.6279041,1776.9,1776.4,7.19477]
[1745591202140,3.0,1776.9,1776.4,7.19477]
[1745591202311,8.6278162,1776.9,1776.4,7.19477]
[1745591202504,8.62789423,1776.9,1776.4,6.5407]
[1745591202743,5.62811222,1776.8,1776.4,6.5407]
[1745591203073,9.05313953,1776.9,1776.4,6.5407]
[1745591203240,3.42536015,1776.9,1776.4,6.5407]
[1745591203541,6.56899301,1777.4,1776.6,5.62866011]
[1745591203710,6.56899301,1777.4,1776.9,5.62750901]
[1745591203711,0.42409445,1777.4,1776.9,5.62750901]
[1745591203902,6.56646678,1777.7,1776.9,6.088319]
[1745591204102,6.14489856,1777.6,1776.9,6.08847597]
[1745591204336,6.14489856,1777.6,1777.0,5.62741254]
[1745591204507,6.14489856,1777.6,1777.1,6.08]
[1745591204710,11.77055816,1777.6,1777.1,6.08]
[1745591205215,6.14489856,1777.8,1777.2,5.62681429]
[1745591205421,5.62495784,1777.8,1777.3,0.4607]
[1745591205620,11.7698564,1777.8,1777.3,0.4607]
[1745591205845,13.63504491,1777.8,1777.3,0.4607]
[1745591206143,8.01008707,1777.8,1777.3,0.4607]
[1745591206330,13.63504558,1777.8,1777.3,6.2677]
[1745591206505,14.06006821,1777.8,1777.3,6.2677]
[1745591206709,5.62537624,1777.7,1777.3,6.2677]
[1745591206918,1.96854444,1777.7,1777.3,6.2677]
[1745591207444,7.59395886,1777.7,1777.3,6.2677]
[1745591207751,7.59395886,1777.7,1777.3,0.4607]
[1745591207949,9.14489856,1777.6,1777.1,6.08]
[1745591208125,9.14489856,1777.6,1777.1,11.887]
[1745591208328,10.8187846,1777.6,1777.1,11.887]
[1745591208550,3.0,1777.6,1777.2,6.08]
[1745591208735,6.56992119,1777.8,1777.2,11.70661163]
[1745591208939,0.9581,1778.0,1777.3,12.16717924]
[1745591208940,11.76924062,1778.0,1777.3,12.16717924]
[1745591209146,6.57705724,1778.3,1777.5,6.08635938]
[1745591209317,3.0,1778.1,1777.6,11.887]
[1745591209510,0.3,1778.0,1777.6,11.887]
[1745591210654,3.0,1777.9,1777.6,6.08]
[1745591211150,8.62469476,1777.9,1777.6,6.08]
[1745591211516,3.0,1777.9,1777.6,6.08]
[1745591211712,3.0,1777.7,1777.6,6.08]
[1745591211917,5.62567485,1777.6,1777.2,6.08]
[1745591212114,12.20137266,1777.6,1777.2,6.08]
[1745591212321,4.57088287,1777.7,1777.2,6.08]
[1745591212637,5.62562337,1777.6,1777.2,6.08]
[1745591212844,10.19631352,1777.7,1777.2,6.08]
[1745591214253,1.01963135,1777.6,1777.2,6.08]
[1745591214824,0.3,1778.0,1777.3,6.08]
[1745591215138,3.0,1777.8,1777.4,12.3467]
[1745591215334,3.0,1777.8,1777.4,6.5407]
[1745591215765,8.62451071,1778.0,1777.4,6.5407]
[1745591215979,3.0,1777.8,1777.4,6.5407]
[1745591216164,3.0,1777.8,1777.4,7.77537]
[1745591217662,3.0,1777.9,1777.4,7.77537]
[1745591217966,3.0,1777.9,1777.4,13.40141096]
[1745591218166,12.76674106,1778.3,1777.7,0.4607]
[1745591218332,5.62383507,1778.2,1777.7,0.4607]
[1745591219143,6.03743815,1778.2,1777.7,0.4607]
[1745591219744,3.41360308,1778.2,1777.7,0.4607]
[1745591219941,6.14489856,1778.1,1777.7,0.4607]
[1745591220173,11.76975533,1777.9,1777.5,6.5407]
[1745591220337,13.24673086,1777.9,1777.5,6.5407]
[1745591220776,5.62541809,1777.7,1777.5,6.08]
[1745591220956,9.58996255,1777.6,1777.5,6.08]
[1745591221274,8.62726037,1777.1,1776.9,3.6018081]
[1745591221441,3.0,1777.0,1776.9,3.6018081]
[1745591222070,3.9644,1777.6,1776.9,4.54238891]
[1745591222231,3.9644,1777.6,1776.9,3.6018081]
[1745591222232,3.0,1777.2,1776.9,3.6018081]
[1745591222679,8.6268364,1777.2,1776.9,3.6018081]
[1745591222839,3.0,1777.0,1776.9,3.6018081]
[1745591223433,5.62797478,1776.9,1776.7,5.803]
[1745591223687,5.62885428,1776.6,1776.4,4.0649081]
[1745591223987,3.0,1776.7,1776.4,4.0649081]
[1745591224165,8.62855344,1776.7,1776.4,4.0649081]
[1745591224488,9.04451904,1776.7,1776.4,4.0649081]
[1745591224783,10.52187525,1776.7,1776.4,3.6018081]
[1745591224936,5.62887556,1776.6,1776.4,3.6018081]
[1745591225131,5.62904587,1776.5,1776.4,3.6018081]
[1745591225346,8.62904587,1776.5,1776.4,3.6018081]
[1745591225580,3.0,1776.5,1776.4,3.6018081]
[1745591225767,9.59073738,1776.5,1776.4,3.6018081]
[1745591226074,8.62967967,1776.3,1776.2,3.6018081]
[1745591226432,3.0,1776.3,1776.2,3.6018081]
[1745591228238,3.0,1776.5,1776.2,3.6018081]
[1745591228663,12.18948979,1776.7,1776.2,4.01329891]
[1745591228664,0.4159656,1776.7,1776.2,4.01329891]
[1745591228859,8.62842272,1776.7,1776.2,4.01329891]
[1745591229179,5.62910095,1776.5,1776.2,3.6018081]
[1745591229547,3.0,1776.4,1776.2,3.6018081]
[1745591230559,3.0,1776.6,1776.2,3.6018081]
[1745591230977,3.0,1776.4,1776.2,3.6018081]
[1745591231681,8.62938691,1776.4,1776.2,3.6018081]
[1745591231841,6.49261836,1776.3,1776.2,3.6018081]
[1745591232381,0.86293869,1776.3,1776.2,3.6018081]
[1745591232677,9.62393953,1776.4,1776.2,3.6018081]
[1745591233346,3.9944,1776.4,1776.2,3.6018081]
[1745591233989,9.62376513,1776.4,1776.2,3.6018081]
[1745591234185,0.9944,1776.4,1776.2,3.6018081]
[1745591234493,3.0,1776.3,1776.2,3.6018081]
[1745591235192,3.42684883,1776.3,1776.2,3.6018081]
[1745591235491,8.62999662,1776.2,1776.1,0.05]
[1745591235647,3.0,1776.2,1776.1,0.05]
[1745591236052,8.62999662,1776.2,1776.1,0.05]
[1745591236352,3.0,1776.2,1776.1,0.05]
[1745591237081,0.42684883,1776.3,1776.1,0.05]
[1745591237261,3.0,1776.4,1776.1,0.05]
[1745591237779,3.0,1776.5,1776.1,0.05]
[1745591237983,10.14655164,1776.5,1776.1,0.05]
[1745591238282,16.29164769,1776.5,1776.1,0.05]
[1745591238584,4.51748752,1776.5,1776.1,0.05]
[1745591238775,3.0,1776.4,1776.1,0.05]
[1745591239499,15.17501789,1776.6,1776.1,0.05]
[1745591239789,1.51750179,1776.5,1776.1,3.6518081]
[1745591239962,3.0,1776.4,1776.1,3.6518081]
[1745591240599,8.62940066,1776.4,1776.1,3.6518081]
[1745591241189,8.62958569,1776.4,1776.1,3.6518081]
[1745591241793,8.62958914,1776.4,1776.1,3.6518081]
[1745591241944,3.0,1776.2,1776.1,3.6518081]
[1745591242150,8.62999662,1776.2,1776.1,3.6518081]
[1745591242460,9.57809662,1776.2,1776.1,0.05]
[1745591244148,3.9481,1776.2,1776.1,0.05]
[1745591244355,8.62999662,1776.2,1776.1,0.05]
[1745591244556,5.16978021,1776.2,1776.1,0.05]
[1745591244776,10.79977683,1776.2,1776.1,0.05]
[1745591244995,5.16978021,1776.2,1776.1,0.05]
[1745591245169,10.79977683,1776.2,1776.1,0.05]
[1745591245362,5.16978021,1776.2,1776.1,0.05]
[1745591245562,10.79977683,1776.2,1776.1,0.05]
[1745591246910,5.16978021,1776.2,1776.1,0.05]
[1745591247702,3.0,1776.2,1776.1,0.05]
[1745591248054,14.77489518,1776.2,1776.1,0.05]
[1745591248866,15.74819518,1776.2,1776.1,0.05]
[1745591250000,3.0,1776.2,1776.1,0.05]
[1745591250158,0.4301278,1776.3,1776.1,3.6518081]
[1745591250362,5.62913953,1776.5,1776.1,3.6518081]
[1745591250557,0.56291395,1776.4,1776.1,3.6518081]
[1745591250893,6.14489856,1776.2,1776.1,3.6518081]
[1745591251095,14.77489518,1776.2,1776.1,3.6518081]
[1745591251902,15.75259518,1776.2,1776.1,3.6518081]
[1745591252205,14.77489518,1776.2,1776.1,3.6518081]
[1745591252898,5.63158191,1775.7,1775.6,9.4088081]
[1745591253212,9.75786889,1775.7,1775.6,9.4088081]
[1745591253372,9.75786889,1775.7,1775.6,3.6018081]
[1745591253579,5.63248558,1775.5,1775.3,3.6018081]
[1745591253901,4.12628698,1775.7,1775.3,3.6018081]
[1745591253902,3.0,1775.6,1775.3,3.6018081]
[1745591254103,5.63238498,1775.5,1775.3,3.6018081]
[1745591254408,1.4264445,1775.5,1775.3,3.6018081]
[1745591254561,7.05883645,1775.5,1775.3,3.6018081]
[1745591254762,5.63253351,1775.4,1775.3,3.6018081]
[1745591255209,13.20373501,1775.5,1775.3,3.6018081]
[1745591255210,7.05883645,1775.5,1775.3,3.6018081]
[1745591255963,5.63253351,1775.4,1775.3,3.6018081]
[1745591256195,6.90167051,1775.4,1775.3,3.6018081]
[1745591256369,8.6320009,1775.6,1775.3,3.6018081]
[1745591256570,5.63253351,1775.4,1775.3,3.6018081]
[1745591256775,8.63253351,1775.4,1775.3,3.6018081]
[1745591257102,8.63316809,1775.2,1775.1,0.05]
[1745591257263,16.20468219,1775.2,1775.1,0.05]
[1745591259500,8.63316809,1775.2,1775.1,0.05]
[1745591259702,3.0,1775.2,1775.1,0.05]
[1745591259880,8.63316809,1775.2,1775.1,0.05]
[1745591260206,3.0,1775.2,1775.1,0.05]
[1745591260408,5.63232604,1775.5,1775.1,0.05]
[1745591260593,8.63253595,1775.4,1775.1,0.5354]
[1745591261170,12.19789925,1775.6,1775.1,0.5354]
[1745591261684,3.0,1775.5,1775.1,0.5354]
[1745591261883,8.63294515,1775.3,1775.1,0.5354]
[1745591262209,6.56586539,1775.6,1775.1,3.6518081]
[1745591262210,7.27223577,1775.6,1775.1,3.6518081]
[1745591262396,8.63288001,1775.3,1775.1,3.6518081]
[1745591263144,3.0,1775.3,1775.1,3.6518081]
[1745591263509,8.6329922,1775.3,1775.1,3.6518081]
[1745591264275,14.77806665,1775.2,1775.1,3.6518081]
[1745591264478,16.81917254,1775.2,1775.1,3.6518081]